[Event "Early-Titled-Tuesday-Blitz-March-26-2024"]
[Site "Chess.com"]
[Date "2024.03.26"]
[Round "2"]
[White "Practical-Play"]
[Black "Kacparov"]
[Result "1/2-1/2"]
[WhiteElo "2522"]
[BlackElo "2898"]
[TimeControl "180+1"]
[EndTime "8:19:00 PDT"]
[Termination "Game drawn by repetition"]

1. e4 {[%clk 0:02:56.9]} 1... c5 {[%clk 0:03:00.2]} 2. c3 {[%clk 0:02:55.8]}
2... d6 {[%clk 0:03:00.2]} 3. d4 {[%clk 0:02:56]} 3... Nf6 {[%clk 0:03:00.9]} 4.
Bd3 {[%clk 0:02:54.6]} 4... Nc6 {[%clk 0:03:01.1]} 5. Ne2 {[%clk 0:02:46.3]}
5... e5 {[%clk 0:03:00.9]} 6. d5 {[%clk 0:02:32.4]} 6... Ne7 {[%clk 0:03:01.1]}
7. O-O {[%clk 0:02:19.3]} 7... Ng6 {[%clk 0:03:00.7]} 8. Nd2 {[%clk 0:02:12.6]}
8... Be7 {[%clk 0:03:00.5]} 9. Re1 {[%clk 0:02:10.8]} 9... O-O {[%clk
0:03:00.6]} 10. Nf1 {[%clk 0:02:11.2]} 10... Rb8 {[%clk 0:02:58.5]} 11. a3
{[%clk 0:02:10.2]} 11... b5 {[%clk 0:02:58.3]} 12. Ne3 {[%clk 0:01:51.8]} 12...
a5 {[%clk 0:02:55.4]} 13. a4 {[%clk 0:01:28.7]} 13... bxa4 {[%clk 0:02:46.1]}
14. Qxa4 {[%clk 0:01:27.2]} 14... Ra8 {[%clk 0:02:39.2]} 15. Ng3 {[%clk
0:01:22.9]} 15... Bd7 {[%clk 0:02:38.6]} 16. Bb5 {[%clk 0:01:21.8]} 16... Bxb5
{[%clk 0:02:32.8]} 17. Qxb5 {[%clk 0:01:21.7]} 17... Qc7 {[%clk 0:02:31.2]} 18.
Nc4 {[%clk 0:01:05.9]} 18... Rfb8 {[%clk 0:02:29.4]} 19. Qa4 {[%clk 0:00:52.9]}
19... Nd7 {[%clk 0:02:10.7]} 20. Nf5 {[%clk 0:00:52.3]} 20... Nb6 {[%clk
0:02:05.4]} 21. Nxb6 {[%clk 0:00:49.8]} 21... Qxb6 {[%clk 0:02:05.7]} 22. g3
{[%clk 0:00:39]} 22... Qb3 {[%clk 0:01:58.3]} 23. Qd7 {[%clk 0:00:37.1]} 23...
Bf8 {[%clk 0:01:36.3]} 24. Nxd6 {[%clk 0:00:35.9]} 24... Bxd6 {[%clk 0:01:32]}
25. Qxd6 {[%clk 0:00:36.5]} 25... Qb5 {[%clk 0:01:28.6]} 26. h4 {[%clk
0:00:35.5]} 26... Rd8 {[%clk 0:01:26]} 27. Qc6 {[%clk 0:00:35.4]} 27... Qxc6
{[%clk 0:01:20.9]} 28. dxc6 {[%clk 0:00:35.1]} 28... Ne7 {[%clk 0:01:21]} 29.
Be3 {[%clk 0:00:26]} 29... Nxc6 {[%clk 0:01:20.7]} 30. Bxc5 {[%clk 0:00:26]}
30... a4 {[%clk 0:01:17]} 31. Ra2 {[%clk 0:00:21.5]} 31... f6 {[%clk 0:01:13]}
32. Rea1 {[%clk 0:00:20.8]} 32... Rab8 {[%clk 0:01:09.1]} 33. Rxa4 {[%clk
0:00:15.8]} 33... Rxb2 {[%clk 0:01:09.2]} 34. Ra6 {[%clk 0:00:16.2]} 34... Rc8
{[%clk 0:01:07.7]} 35. Be3 {[%clk 0:00:14.2]} 35... h5 {[%clk 0:01:05.4]} 36.
Ra8 {[%clk 0:00:13.6]} 36... Rbb8 {[%clk 0:01:03.5]} 37. Rxb8 {[%clk 0:00:13.4]}
37... Rxb8 {[%clk 0:01:04.4]} 38. Ra6 {[%clk 0:00:13.5]} 38... Rc8 {[%clk
0:01:04.5]} 39. c4 {[%clk 0:00:13.7]} 39... Kf7 {[%clk 0:01:04.6]} 40. c5 {[%clk
0:00:13.9]} 40... Ke6 {[%clk 0:01:04.8]} 41. Kf1 {[%clk 0:00:14.3]} 41... Kd7
{[%clk 0:01:04]} 42. Ke2 {[%clk 0:00:14.7]} 42... Rb8 {[%clk 0:01:02.5]} 43. Rb6
{[%clk 0:00:14.8]} 43... Ra8 {[%clk 0:01:02.1]} 44. Rb7+ {[%clk 0:00:14.7]}
44... Ke6 {[%clk 0:00:57.2]} 45. Rxg7 {[%clk 0:00:15.6]} 45... Ra2+ {[%clk
0:00:54]} 46. Kd3 {[%clk 0:00:16]} 46... Ne7 {[%clk 0:00:43]} 47. Kc4 {[%clk
0:00:15.5]} 47... Rc2+ {[%clk 0:00:41.4]} 48. Kb3 {[%clk 0:00:15.8]} 48... Re2
{[%clk 0:00:40.8]} 49. Rh7 {[%clk 0:00:15.5]} 49... f5 {[%clk 0:00:38.1]} 50.
Rh6+ {[%clk 0:00:15.1]} 50... Kd7 {[%clk 0:00:37.2]} 51. exf5 {[%clk 0:00:13.3]}
51... Nxf5 {[%clk 0:00:35.8]} 52. Rxh5 {[%clk 0:00:13.7]} 52... Ke6 {[%clk
0:00:31.1]} 53. Kc4 {[%clk 0:00:10.7]} 53... Nxe3+ {[%clk 0:00:22.9]} 54. fxe3
{[%clk 0:00:10.8]} 54... Rxe3 {[%clk 0:00:23.7]} 55. g4 {[%clk 0:00:11.3]} 55...
Re4+ {[%clk 0:00:22.8]} 56. Kd3 {[%clk 0:00:11.2]} 56... Rxg4 {[%clk 0:00:23.2]}
57. c6 {[%clk 0:00:10.6]} 57... Kd6 {[%clk 0:00:21.6]} 58. Rh6+ {[%clk 0:00:11]}
58... Kc7 {[%clk 0:00:21.9]} 59. h5 {[%clk 0:00:11.4]} 59... Rh4 {[%clk
0:00:21.5]} 60. Ke3 {[%clk 0:00:11.5]} 60... Kb6 {[%clk 0:00:21.1]} 61. Kf3
{[%clk 0:00:11.2]} 61... Kc7 {[%clk 0:00:12.9]} 62. Kg3 {[%clk 0:00:11.5]} 62...
Rh1 {[%clk 0:00:13.2]} 63. Kg4 {[%clk 0:00:10.7]} 63... e4 {[%clk 0:00:13.3]}
64. Kf4 {[%clk 0:00:11.1]} 64... Rh4+ {[%clk 0:00:13.4]} 65. Ke3 {[%clk
0:00:10.6]} 65... Kb6 {[%clk 0:00:12.9]} 66. Kd4 {[%clk 0:00:10.7]} 66... Kc7
{[%clk 0:00:13.2]} 67. Kc5 {[%clk 0:00:10.5]} 67... e3 {[%clk 0:00:12.6]} 68.
Rh7+ {[%clk 0:00:10.9]} 68... Kd8 {[%clk 0:00:12.9]} 69. Kd6 {[%clk 0:00:08.9]}
69... Rd4+ {[%clk 0:00:12.9]} 70. Kc5 {[%clk 0:00:09.5]} 70... Rd1 {[%clk
0:00:12.3]} 71. Rh8+ {[%clk 0:00:06.7]} 71... Kc7 {[%clk 0:00:12.7]} 72. Rh7+
{[%clk 0:00:07.3]} 72... Kd8 {[%clk 0:00:11.2]} 73. Rh8+ {[%clk 0:00:07.5]}
73... Kc7 {[%clk 0:00:11.8]} 74. Rh7+ {[%clk 0:00:07.7]} 74... Kd8 {[%clk
0:00:12.3]} 1/2-1/2

[Event "Early-Titled-Tuesday-Blitz-March-26-2024"]
[Site "Chess.com"]
[Date "2024.03.26"]
[Round "2"]
[White "Joachim100x"]
[Black "Kapitan_Bayan"]
[Result "1-0"]
[WhiteElo "2517"]
[BlackElo "2276"]
[TimeControl "180+1"]
[EndTime "8:19:00 PDT"]
[Termination "Joachim100x won by checkmate"]

1. e4 {[%clk 0:03:00.9]} 1... c5 {[%clk 0:02:58.6]} 2. Nf3 {[%clk 0:03:00.3]}
2... d6 {[%clk 0:02:58.8]} 3. d4 {[%clk 0:02:59.9]} 3... cxd4 {[%clk 0:02:59.7]}
4. Nxd4 {[%clk 0:03:00.4]} 4... Nf6 {[%clk 0:02:59.7]} 5. Nc3 {[%clk 0:03:00.8]}
5... a6 {[%clk 0:02:59.7]} 6. f4 {[%clk 0:03:00.6]} 6... e5 {[%clk 0:02:57.9]}
7. Nf3 {[%clk 0:03:00.7]} 7... Nbd7 {[%clk 0:02:48.7]} 8. Bd3 {[%clk 0:03:00.1]}
8... Qb6 {[%clk 0:02:43.8]} 9. Qe2 {[%clk 0:02:59]} 9... Be7 {[%clk 0:02:37.4]}
10. Rb1 {[%clk 0:02:54.1]} 10... O-O {[%clk 0:02:31.9]} 11. Be3 {[%clk
0:02:53.9]} 11... Qc7 {[%clk 0:02:31.1]} 12. O-O {[%clk 0:02:53.3]} 12... exf4
{[%clk 0:02:27.9]} 13. Bxf4 {[%clk 0:02:53]} 13... Ne5 {[%clk 0:02:28.1]} 14.
Nxe5 {[%clk 0:02:51.3]} 14... dxe5 {[%clk 0:02:28.6]} 15. Bg3 {[%clk 0:02:49.9]}
15... Bg4 {[%clk 0:02:23.7]} 16. Qe1 {[%clk 0:02:49.6]} 16... Be6 {[%clk
0:02:20.2]} 17. Kh1 {[%clk 0:02:48.6]} 17... Rac8 {[%clk 0:02:15.5]} 18. Bh4
{[%clk 0:02:39.1]} 18... Ng4 {[%clk 0:02:01.6]} 19. Bxe7 {[%clk 0:02:36.4]}
19... Qxe7 {[%clk 0:02:02.5]} 20. h3 {[%clk 0:02:36.7]} 20... Nf6 {[%clk
0:02:00]} 21. Qh4 {[%clk 0:02:35.2]} 21... b5 {[%clk 0:01:33.5]} 22. a3 {[%clk
0:02:28.7]} 22... Rc7 {[%clk 0:01:15.7]} 23. Qg3 {[%clk 0:02:28.2]} 23... Nd7
{[%clk 0:01:00.2]} 24. Rbe1 {[%clk 0:02:10.8]} 24... Rfc8 {[%clk 0:00:57.8]} 25.
Nd5 {[%clk 0:02:05.6]} 25... Bxd5 {[%clk 0:00:47.4]} 26. exd5 {[%clk 0:02:05.5]}
26... Re8 {[%clk 0:00:38.9]} 27. Rd1 {[%clk 0:00:59.2]} 27... Qd6 {[%clk
0:00:20.8]} 28. Bxh7+ {[%clk 0:00:51]} 28... Kxh7 {[%clk 0:00:19.8]} 29. Rxf7
{[%clk 0:00:51.3]} 29... Qg6 {[%clk 0:00:14]} 30. Qh4+ {[%clk 0:00:41.4]} 30...
Kg8 {[%clk 0:00:07.8]} 31. d6 {[%clk 0:00:37.8]} 31... Rb7 {[%clk 0:00:06.5]}
32. Re7 {[%clk 0:00:35.2]} 32... Rd8 {[%clk 0:00:05]} 33. Rxg7+ {[%clk
0:00:27.9]} 33... Kxg7 {[%clk 0:00:05.2]} 34. Qxd8 {[%clk 0:00:27.3]} 34... Qh5
{[%clk 0:00:05.1]} 35. Rf1 {[%clk 0:00:25.2]} 35... Qg6 {[%clk 0:00:02.8]} 36.
Qe7+ {[%clk 0:00:23.5]} 36... Kh6 {[%clk 0:00:02.5]} 37. Kh2 {[%clk 0:00:20.2]}
37... Nc5 {[%clk 0:00:02.3]} 38. Qh4+ {[%clk 0:00:18]} 38... Kg7 {[%clk
0:00:02]} 39. Rf3 {[%clk 0:00:15.5]} 39... Rd7 {[%clk 0:00:02.2]} 40. Rg3 {[%clk
0:00:14.8]} 40... Qxg3+ {[%clk 0:00:02.9]} 41. Qxg3+ {[%clk 0:00:14.9]} 41...
Kf6 {[%clk 0:00:03.2]} 42. Qf2+ {[%clk 0:00:14.8]} 42... Ke6 {[%clk 0:00:03.2]}
43. Qxc5 {[%clk 0:00:14.9]} 43... Rxd6 {[%clk 0:00:04.1]} 44. c4 {[%clk
0:00:12.7]} 44... bxc4 {[%clk 0:00:03.6]} 45. Qxc4+ {[%clk 0:00:12.9]} 45... Ke7
{[%clk 0:00:04.5]} 46. h4 {[%clk 0:00:13.2]} 46... Rh6 {[%clk 0:00:04.3]} 47.
Kh3 {[%clk 0:00:13]} 47... Kf6 {[%clk 0:00:04.4]} 48. g4 {[%clk 0:00:13.2]}
48... Ke7 {[%clk 0:00:04.3]} 49. g5 {[%clk 0:00:13.1]} 49... Rh8 {[%clk
0:00:03.3]} 50. Kg4 {[%clk 0:00:13.2]} 50... Kd6 {[%clk 0:00:03.2]} 51. g6
{[%clk 0:00:13]} 51... Rh6 {[%clk 0:00:02.5]} 52. Kg5 {[%clk 0:00:12.9]} 52...
Rh8 {[%clk 0:00:02.9]} 53. g7 {[%clk 0:00:13]} 53... Rd8 {[%clk 0:00:03.5]} 54.
g8=Q {[%clk 0:00:12.2]} 54... Rxg8+ {[%clk 0:00:04.2]} 55. Qxg8 {[%clk
0:00:12.1]} 55... e4 {[%clk 0:00:05.1]} 56. Kf4 {[%clk 0:00:11.8]} 56... e3
{[%clk 0:00:06]} 57. Kxe3 {[%clk 0:00:12.1]} 57... Kc5 {[%clk 0:00:06.9]} 58.
Qb3 {[%clk 0:00:12.1]} 58... a5 {[%clk 0:00:06.9]} 59. a4 {[%clk 0:00:12.4]}
59... Kc6 {[%clk 0:00:07]} 60. Qb5+ {[%clk 0:00:12.4]} 60... Kc7 {[%clk
0:00:07.3]} 61. Qxa5+ {[%clk 0:00:12.6]} 61... Kd7 {[%clk 0:00:08.2]} 62. Qb6
{[%clk 0:00:12.7]} 62... Ke7 {[%clk 0:00:09.1]} 63. Kf4 {[%clk 0:00:12.9]} 63...
Kd7 {[%clk 0:00:10]} 64. Ke5 {[%clk 0:00:13.3]} 64... Kc8 {[%clk 0:00:10.9]} 65.
Qa7 {[%clk 0:00:13.2]} 65... Kd8 {[%clk 0:00:04.6]} 66. Ke6 {[%clk 0:00:12.3]}
66... Kc8 {[%clk 0:00:04.5]} 67. Kd6 {[%clk 0:00:12.5]} 67... Kd8 {[%clk
0:00:04.9]} 68. Qd7# {[%clk 0:00:12.7]} 1-0

[Event "Early-Titled-Tuesday-Blitz-March-26-2024"]
[Site "Chess.com"]
[Date "2024.03.26"]
[Round "2"]
[White "Staudenhocker43"]
[Black "twitchTriniCupid"]
[Result "1-0"]
[WhiteElo "2535"]
[BlackElo "2331"]
[TimeControl "180+1"]
[EndTime "8:19:02 PDT"]
[Termination "Staudenhocker43 won on time"]

1. d4 {[%clk 0:03:00.9]} 1... Nf6 {[%clk 0:02:58.3]} 2. Nf3 {[%clk 0:03:01]}
2... d5 {[%clk 0:02:56.8]} 3. Nbd2 {[%clk 0:03:00.2]} 3... Bf5 {[%clk
0:02:48.1]} 4. c4 {[%clk 0:02:59.3]} 4... e6 {[%clk 0:02:48.1]} 5. Qb3 {[%clk
0:02:54.7]} 5... b6 {[%clk 0:02:45.1]} 6. Nh4 {[%clk 0:02:44.1]} 6... Bg6 {[%clk
0:02:44.4]} 7. Nxg6 {[%clk 0:02:42.9]} 7... hxg6 {[%clk 0:02:45.3]} 8. g3 {[%clk
0:02:42.8]} 8... Nc6 {[%clk 0:02:11.6]} 9. e3 {[%clk 0:02:24.5]} 9... Qd7 {[%clk
0:01:51.4]} 10. Bg2 {[%clk 0:02:17.8]} 10... Bb4 {[%clk 0:01:38.9]} 11. O-O
{[%clk 0:02:13.1]} 11... O-O {[%clk 0:01:21.2]} 12. a3 {[%clk 0:02:04.8]} 12...
Bd6 {[%clk 0:01:02.3]} 13. Qc2 {[%clk 0:02:00.2]} 13... a5 {[%clk 0:00:52.7]}
14. b3 {[%clk 0:01:59.4]} 14... Rac8 {[%clk 0:00:50.9]} 15. Bb2 {[%clk
0:01:58.8]} 15... Na7 {[%clk 0:00:45.6]} 16. c5 {[%clk 0:01:43.7]} 16... Be7
{[%clk 0:00:44.7]} 17. b4 {[%clk 0:01:41.3]} 17... Rb8 {[%clk 0:00:36.8]} 18.
Rfc1 {[%clk 0:01:21.6]} 18... Rfc8 {[%clk 0:00:35.9]} 19. Bf1 {[%clk 0:01:20.1]}
19... c6 {[%clk 0:00:13.8]} 20. cxb6 {[%clk 0:01:12.5]} 20... Rxb6 {[%clk
0:00:13.6]} 21. bxa5 {[%clk 0:01:13.1]} 21... Rbb8 {[%clk 0:00:13.8]} 22. Bc3
{[%clk 0:01:11.6]} 22... c5 {[%clk 0:00:13.3]} 23. dxc5 {[%clk 0:01:08.6]} 23...
Rxc5 {[%clk 0:00:13.1]} 24. Qd1 {[%clk 0:01:02.7]} 24... Rbc8 {[%clk 0:00:13.1]}
25. Bb4 {[%clk 0:01:02.5]} 25... Rxc1 {[%clk 0:00:13.1]} 26. Rxc1 {[%clk
0:01:03.1]} 26... Nc6 {[%clk 0:00:12.4]} 27. Bb5 {[%clk 0:00:50.8]} 27... Bxb4
{[%clk 0:00:11.1]} 28. axb4 {[%clk 0:00:50.8]} 28... Qd6 {[%clk 0:00:11.6]} 29.
Bxc6 {[%clk 0:00:49.4]} 29... Rxc6 {[%clk 0:00:12.5]} 30. Rxc6 {[%clk 0:00:42]}
30... Qxc6 {[%clk 0:00:13.4]} 31. Qa1 {[%clk 0:00:41.4]} 31... Qa6 {[%clk
0:00:13.2]} 32. Nb3 {[%clk 0:00:27.9]} 32... g5 {[%clk 0:00:11.8]} 33. Nc5
{[%clk 0:00:25.7]} 33... Qe2 {[%clk 0:00:11.8]} 34. a6 {[%clk 0:00:24.3]} 34...
Ng4 {[%clk 0:00:10.8]} 35. Qf1 {[%clk 0:00:24]} 35... Qa2 {[%clk 0:00:10.8]} 36.
b5 {[%clk 0:00:20]} 36... Ne5 {[%clk 0:00:08.8]} 37. b6 {[%clk 0:00:19.8]} 37...
Nc6 {[%clk 0:00:02.7]} 38. a7 {[%clk 0:00:17.3]} 38... Kf8 {[%clk 0:00:02.3]}
39. Qb5 {[%clk 0:00:15.3]} 39... Nxa7 {[%clk 0:00:02.1]} 40. bxa7 {[%clk
0:00:14.9]} 40... Qxa7 {[%clk 0:00:02.1]} 41. Kg2 {[%clk 0:00:15.1]} 41... Kg8
{[%clk 0:00:02.7]} 42. Nd3 {[%clk 0:00:11.6]} 42... Kh7 {[%clk 0:00:03.1]} 43.
Qb3 {[%clk 0:00:11.2]} 43... Qe7 {[%clk 0:00:03.8]} 44. Qc2 {[%clk 0:00:11.3]}
44... Kg8 {[%clk 0:00:04.4]} 45. Ne5 {[%clk 0:00:11.4]} 45... Qf6 {[%clk
0:00:05]} 46. Qc8+ {[%clk 0:00:11]} 46... Kh7 {[%clk 0:00:05.2]} 47. Nf3 {[%clk
0:00:11.7]} 47... g6 {[%clk 0:00:05.6]} 48. h3 {[%clk 0:00:11.3]} 48... e5
{[%clk 0:00:05]} 49. Qg4 {[%clk 0:00:10.2]} 49... e4 {[%clk 0:00:05.5]} 50.
Nxg5+ {[%clk 0:00:10.5]} 50... Kg7 {[%clk 0:00:06]} 51. Qf4 {[%clk 0:00:11.1]}
51... Qe7 {[%clk 0:00:05.8]} 52. h4 {[%clk 0:00:11.6]} 52... f6 {[%clk
0:00:06.1]} 53. Nh3 {[%clk 0:00:11.9]} 53... Qe6 {[%clk 0:00:06.2]} 54. g4
{[%clk 0:00:12.3]} 54... Qd7 {[%clk 0:00:05.6]} 55. g5 {[%clk 0:00:12.7]} 55...
f5 {[%clk 0:00:04.8]} 56. Ng1 {[%clk 0:00:12.7]} 56... Qb5 {[%clk 0:00:04.2]}
57. Qe5+ {[%clk 0:00:12.3]} 57... Kh7 {[%clk 0:00:04.4]} 58. Nh3 {[%clk
0:00:04.7]} 58... Qe2 {[%clk 0:00:03.3]} 59. Qf4 {[%clk 0:00:04.6]} 59... Qd3
{[%clk 0:00:02.7]} 60. Qg3 {[%clk 0:00:04.9]} 60... d4 {[%clk 0:00:02.6]} 61.
Nf4 {[%clk 0:00:03.5]} 61... Qd2 {[%clk 0:00:02.2]} 62. exd4 {[%clk 0:00:04.4]}
62... Qxd4 {[%clk 0:00:02.7]} 63. Qe3 {[%clk 0:00:04.7]} 63... Qd6 {[%clk
0:00:02.8]} 64. Qa7+ {[%clk 0:00:05]} 64... Kg8 {[%clk 0:00:02.6]} 65. Kg3
{[%clk 0:00:04.5]} 65... Qe5 {[%clk 0:00:01.6]} 66. Qb8+ {[%clk 0:00:03.8]}
66... Kg7 {[%clk 0:00:01.9]} 67. Qxe5+ {[%clk 0:00:03.3]} 1-0

[Event "Early-Titled-Tuesday-Blitz-March-26-2024"]
[Site "Chess.com"]
[Date "2024.03.26"]
[Round "2"]
[White "FGHSMN"]
[Black "Bilan_Danila"]
[Result "0-1"]
[WhiteElo "2958"]
[BlackElo "2662"]
[TimeControl "180+1"]
[EndTime "8:19:07 PDT"]
[Termination "Bilan_Danila won on time"]

1. c4 {[%clk 0:03:00.9]} 1... c6 {[%clk 0:02:56.2]} 2. d4 {[%clk 0:03:00.2]}
2... d5 {[%clk 0:02:56.2]} 3. cxd5 {[%clk 0:03:01.1]} 3... cxd5 {[%clk
0:02:55.9]} 4. Nc3 {[%clk 0:02:58.5]} 4... Nf6 {[%clk 0:02:52.1]} 5. Bf4 {[%clk
0:02:57.6]} 5... Nc6 {[%clk 0:02:50.2]} 6. e3 {[%clk 0:02:56.6]} 6... Bf5 {[%clk
0:02:30.3]} 7. Qb3 {[%clk 0:02:46.5]} 7... Na5 {[%clk 0:02:25.6]} 8. Qa4+ {[%clk
0:02:35.8]} 8... Bd7 {[%clk 0:02:23]} 9. Qc2 {[%clk 0:02:36.3]} 9... Rc8 {[%clk
0:02:17.8]} 10. Nf3 {[%clk 0:02:34.6]} 10... e6 {[%clk 0:01:58]} 11. Bd3 {[%clk
0:02:33.5]} 11... Nc4 {[%clk 0:01:55.8]} 12. O-O {[%clk 0:02:31.3]} 12... Bb4
{[%clk 0:01:34.5]} 13. Rac1 {[%clk 0:02:29.5]} 13... Bxc3 {[%clk 0:01:23.1]} 14.
bxc3 {[%clk 0:02:22.3]} 14... Bb5 {[%clk 0:01:03.8]} 15. Ne5 {[%clk 0:02:16.5]}
15... Nd6 {[%clk 0:00:30.9]} 16. Bxb5+ {[%clk 0:02:06.3]} 16... Nxb5 {[%clk
0:00:31.8]} 17. c4 {[%clk 0:01:54.4]} 17... dxc4 {[%clk 0:00:27.2]} 18. Qa4
{[%clk 0:01:54.2]} 18... a6 {[%clk 0:00:23.9]} 19. Rxc4 {[%clk 0:01:37.8]} 19...
Nd5 {[%clk 0:00:20.9]} 20. Bg3 {[%clk 0:01:15.9]} 20... O-O {[%clk 0:00:19.3]}
21. Rfc1 {[%clk 0:01:07.9]} 21... Ndc3 {[%clk 0:00:18.2]} 22. Qc2 {[%clk
0:01:06.2]} 22... Qd5 {[%clk 0:00:09]} 23. Rc5 {[%clk 0:00:43.5]} 23... Rxc5
{[%clk 0:00:06.7]} 24. dxc5 {[%clk 0:00:44.4]} 24... Qxa2 {[%clk 0:00:05.9]} 25.
Qxa2 {[%clk 0:00:36.2]} 25... Nxa2 {[%clk 0:00:06.8]} 26. Rd1 {[%clk 0:00:37.1]}
26... Nac3 {[%clk 0:00:06.8]} 27. Rd7 {[%clk 0:00:37.2]} 27... a5 {[%clk
0:00:06.4]} 28. Rxb7 {[%clk 0:00:36.5]} 28... a4 {[%clk 0:00:06.9]} 29. Nc4
{[%clk 0:00:23.4]} 29... a3 {[%clk 0:00:06.6]} 30. Nxa3 {[%clk 0:00:16.7]} 30...
Nxa3 {[%clk 0:00:07.5]} 31. c6 {[%clk 0:00:14.1]} 31... Ne2+ {[%clk 0:00:07.7]}
32. Kf1 {[%clk 0:00:13.2]} 32... Nxg3+ {[%clk 0:00:08.6]} 33. hxg3 {[%clk
0:00:14.1]} 33... Nc4 {[%clk 0:00:09.5]} 34. c7 {[%clk 0:00:12.6]} 34... Nd6
{[%clk 0:00:09.6]} 35. Rb8 {[%clk 0:00:13.3]} 35... Nc8 {[%clk 0:00:09.3]} 36.
Ke2 {[%clk 0:00:13]} 36... f6 {[%clk 0:00:09.9]} 37. Kd3 {[%clk 0:00:13.2]}
37... Kf7 {[%clk 0:00:10.5]} 38. Rb4 {[%clk 0:00:08.3]} 38... Ke7 {[%clk
0:00:10.6]} 39. Rh4 {[%clk 0:00:09]} 39... h6 {[%clk 0:00:10.7]} 40. Rd4 {[%clk
0:00:09.5]} 40... Nd6 {[%clk 0:00:09.3]} 41. Rg4 {[%clk 0:00:05.4]} 41... g5
{[%clk 0:00:09.3]} 42. Rb4 {[%clk 0:00:04.6]} 42... Rc8 {[%clk 0:00:09.2]} 43.
Rb1 {[%clk 0:00:02.6]} 43... Rxc7 {[%clk 0:00:09.3]} 44. Rh1 {[%clk 0:00:03.5]}
44... Nf7 {[%clk 0:00:09.2]} 45. f4 {[%clk 0:00:02.5]} 45... Rd7+ {[%clk
0:00:10.1]} 46. Ke2 {[%clk 0:00:02.5]} 46... f5 {[%clk 0:00:10.7]} 47. Kf3
{[%clk 0:00:03]} 47... Kf6 {[%clk 0:00:11.2]} 48. Rc1 {[%clk 0:00:02]} 48... Kg6
{[%clk 0:00:11.3]} 49. Rc2 {[%clk 0:00:02.2]} 49... Nd6 {[%clk 0:00:11.5]} 50.
Rc6 {[%clk 0:00:02.3]} 50... Kf6 {[%clk 0:00:11.4]} 51. Ra6 {[%clk 0:00:02]}
51... Ne4 {[%clk 0:00:11.8]} 52. g4 {[%clk 0:00:02.4]} 52... Nd6 {[%clk
0:00:08.3]} 53. gxf5 {[%clk 0:00:02.6]} 53... exf5 {[%clk 0:00:07.9]} 54. g4
{[%clk 0:00:02.6]} 54... gxf4 {[%clk 0:00:07]} 55. exf4 {[%clk 0:00:02.7]} 55...
Ke6 {[%clk 0:00:07.2]} 56. gxf5+ {[%clk 0:00:02.3]} 56... Kxf5 {[%clk
0:00:07.3]} 57. Ra5+ {[%clk 0:00:03.2]} 57... Kf6 {[%clk 0:00:07.7]} 58. Kg4
{[%clk 0:00:03.7]} 58... Nf7 {[%clk 0:00:04.7]} 59. Ra6+ {[%clk 0:00:01.7]}
59... Kg7 {[%clk 0:00:05]} 60. Kh5 {[%clk 0:00:01]} 60... Rd5+ {[%clk
0:00:04.6]} 61. Kg4 {[%clk 0:00:01.7]} 61... Rd6 {[%clk 0:00:05.2]} 62. Ra8
{[%clk 0:00:01.1]} 62... Rf6 {[%clk 0:00:05.4]} 0-1